fUSD/lending_fUSD_20250828
["ID","MTS","AMOUNT","RATE_DAILY","PERIOD"]
[381836423,1756363884058,-28472.12765034,0.00033,7]
[381836424,1756363884069,-1000.0,0.00033,60]
[381836425,1756363884080,-5500.0,0.00033,12]
[381836426,1756363884090,-130000.0,0.00033,20]
[381836427,1756363884100,-1000.0,0.00033,15]
[381836428,1756363884109,-1787.25999901,0.00033,120]
[381836429,1756363884118,-313.74430526,0.00033,120]
[381836430,1756363884128,-449.19,0.00033,30]
[381836431,1756363884138,-165.01,0.00033,4]
[381836432,1756363884147,-42211.34187814,0.00033,30]
[381836433,1756363884156,-453049.34271,0.00033,5]
[381836434,1756363884167,-1800.0,0.00033,34]
[381836435,1756363884177,-538.155677,0.00033,14]
[381836436,1756363884187,-957.74,0.00033013,14]
[381836437,1756363884197,-151.16009653,0.00033032,30]
[381836438,1756363884206,-838.53,0.00033055,60]
[381836439,1756363884216,-325.0,0.0003306,2]
[381836440,1756363884226,-219.17398539,0.000331,2]
[381836441,1756363884235,-838.53,0.00033155,60]
[381836442,1756363884245,-171.88,0.00033165,2]
[381836443,1756363884254,-838.53,0.00033255,60]
[381836444,1756363884263,-8437.21398021,0.00033261,20]
[381836445,1756363884272,-725.52463839,0.00033261,2]
[381836446,1756363884282,-162.97116817,0.00033261,5]
[381836447,1756363884292,-313.85285983,0.00033262,2]
[381836448,1756363884302,-312.76700458,0.00033262,2]
[381836449,1756363884311,-361.10247878,0.00033262,15]
[381836450,1756363884321,-20000.0,0.00033262,2]
[381836451,1756363884330,-1710.89,0.00033262,30]
[381836452,1756363884340,-456.61,0.00033262,30]
[381836453,1756363884349,-500.0,0.000333,15]
[381836454,1756363884358,-300.0,0.00033319,62]
[381836455,1756363884368,-150.0,0.0003335,120]
[381836456,1756363884378,-838.53,0.00033355,60]
[381836457,1756363884387,-50000.0,0.00033361,30]
[381836458,1756363884399,-50000.0,0.00033361,31]
[381836459,1756363884408,-920.98,0.00033362,30]
[381836460,1756363884421,-4339.1239754,0.00033362,10]
[381836461,1756363884430,-146738.54508989,0.00033362,2]
[381836462,1756363884440,-8054.77981313,0.00033362,7]
[381836463,1756363884449,-3769.57820664,0.00033362,7]
[381836464,1756363884460,-25787.56434273,0.00033362,7]
[381836465,1756363884469,-1593.78813238,0.00033362,10]
[381836466,1756363884479,-5235.45677252,0.00033362,2]
[381836467,1756363884488,-2478.34490049,0.00033362,2]
[381836468,1756363884499,-2730.55983034,0.00033362,2]
[381836469,1756363884508,-143741.98455298,0.00033362,2]
[381836470,1756363884519,-7794.05397596,0.00033362,2]
[381836471,1756363884531,-9323.4863188,0.00033362,2]
[381836472,1756363884540,-3452.87152267,0.00033362,2]
[381836473,1756363884549,-12955.27692983,0.00033362,2]
[381836474,1756363884560,-5068.53597959,0.00033362,2]
[381836475,1756363884570,-3272.52236708,0.00033362,2]
[381836476,1756363884579,-10000.0,0.00033362,2]
[381836477,1756363884589,-10801.02800506,0.00033362,2]
[381836478,1756363884598,-15078.25901425,0.00033362,2]
[381836479,1756363884608,-6000.0,0.00033362,2]
[381836480,1756363884617,-15198.23232305,0.00033362,2]
[381836481,1756363884627,-3084.7379477,0.00033362,2]
[381836482,1756363884636,-3355.94173082,0.00033362,2]
[381836483,1756363884645,-7842.95685772,0.00033362,2]
[381836484,1756363884655,-2500.0,0.00033362,2]
[381836485,1756363884666,-5053.14728312,0.00033362,2]
[381836486,1756363884676,-2224.59624067,0.00033362,2]
[381836487,1756363884685,-14932.09534863,0.00033362,2]
[381836488,1756363884697,-7055.44979898,0.00033362,2]
[381836489,1756363884707,-3076.01121816,0.00033362,2]
[381836490,1756363884717,-5744.71057941,0.00033362,2]
[381836491,1756363884727,-4626.33219571,0.00033362,2]
[381836492,1756363884737,-12744.37877304,0.00033362,2]
[381836493,1756363884747,-719.82990707,0.00033362,10]
[381836494,1756363884757,-582705.49348118,0.00033362,2]
[381836495,1756363884766,-171440.36555345,0.00033362,2]
[381836496,1756363884776,-278.24816076,0.00033362,10]
[381836497,1756363884785,-4976.69892085,0.00033362,10]
[381836498,1756363884795,-2322.83915163,0.00033362,10]
[381836499,1756363884808,-26054.8025067,0.00033362,20]
[381836500,1756363884818,-2296.72377211,0.00033362,10]
[381836501,1756363884827,-1000.0,0.00033362,10]
[381836502,1756363884837,-23026.36179803,0.00033362,2]
[381836503,1756363884847,-402219.57093575,0.00033362,2]
[381836504,1756363884856,-9412.3384746,0.00033362,10]
[381836505,1756363884866,-165864.69268934,0.00033362,2]
[381836506,1756363884876,-27228.17959744,0.00033362,2]
[381836507,1756363884886,-15733.34123282,0.00033362,2]
[381836508,1756363884895,-23268.62559242,0.00033362,2]
[381836509,1756363884905,-20470.19632729,0.00033362,2]
[381836510,1756363884916,-750.09167305,0.00033362,2]
[381836511,1756363884926,-377.00377586,0.00033362,2]
[381836512,1756363884935,-394.86619523,0.00033362,2]
[381836513,1756363884945,-119105.35348392,0.00033362,2]
[381836514,1756363884955,-365.82050133,0.00033362,2]
[381836515,1756363884965,-351.81776761,0.00033362,2]
[381836516,1756363884976,-350.03543691,0.00033362,2]
[381836517,1756363884989,-152.8439489,0.00033362,2]
[381836518,1756363884999,-251.66681888,0.00033362,2]
[381836519,1756363885008,-166.09213195,0.00033362,2]
[381836520,1756363885018,-245.81583432,0.00033362,2]
[381836521,1756363885030,-163.38805113,0.00033362,2]
[381836522,1756363885040,-550.79781167,0.00033362,2]
[381836523,1756363885050,-185.92490295,0.00033362,2]
[381836524,1756363885060,-177.11189971,0.00033362,2]
[381836525,1756363885070,-550.0,0.00033362,2]
[381836526,1756363885080,-57154.51311216,0.00033362,2]
[381836527,1756363885090,-4122.48056088,0.00033362,2]
[381836528,1756363885099,-4403.38135512,0.00033362,20]
[381836529,1756363885109,-17042.11984385,0.00033362,20]
[381836530,1756363885118,-710.39469449,0.00033362,2]
[381836531,1756363885128,-1535.554282,0.00033362,2]
[381836532,1756363885139,-6676.86667905,0.00033362,2]
[381836533,1756363885148,-300.0,0.00033362,15]
[381836534,1756363885158,-1210.0,0.00033362,2]
[381836535,1756363885168,-1039.93485781,0.00033362,2]
[381836536,1756363885177,-74704.06104053,0.00033362,2]
[381836537,1756363885187,-1694.27283187,0.00033362,2]
[381836538,1756363885197,-659.77790241,0.00033362,2]
[381836539,1756363885420,-1274.01568492,0.00033362,2]
[381836540,1756363885429,-1052.04248753,0.00033362,2]
[381836541,1756363885438,-1324.39921601,0.00033362,2]
[381836542,1756363885447,-2217.47547744,0.00033362,2]
[381836543,1756363885456,-1938.90926299,0.00033362,2]
[381836544,1756363885465,-643.0,0.00033362,2]
[381836545,1756363885475,-980.09068923,0.00033362,2]
[381836546,1756363885485,-578.67103216,0.00033362,2]
[381836547,1756363885494,-1853.4006144,0.00033362,2]
[381836548,1756363885503,-1480.51840935,0.00033362,2]
[381836549,1756363885512,-1018.12035121,0.00033362,2]
[381836550,1756363885521,-1484.42997273,0.00033362,2]
[381836551,1756363885532,-1043.73605536,0.00033362,2]
[381836552,1756363885541,-1188.82864789,0.00033362,2]
[381836553,1756363885550,-568.77076155,0.00033362,2]
[381836554,1756363885559,-632.56410549,0.00033362,2]
[381836555,1756363885569,-1077.33235643,0.00033362,2]
[381836556,1756363885578,-584.85983229,0.00033362,2]
[381836557,1756363885587,-1889.51545758,0.00033362,2]
[381836558,1756363885596,-1100.0,0.00033362,2]
[381836559,1756363885605,-920.85996031,0.00033362,2]
[381836560,1756363885615,-1602.50219043,0.00033362,2]
[381836561,1756363885624,-1021.45742942,0.00033362,2]
[381836562,1756363885634,-1854.30010996,0.00033362,2]
[381836563,1756363885643,-1128.91591855,0.00033362,2]
[381836564,1756363885652,-872.14597719,0.00033362,2]
[381836565,1756363885661,-2194.74736679,0.00033362,2]
[381836566,1756363885671,-231.23475422,0.00033362,2]
[381836567,1756363885681,-175.48825708,0.00033362,2]
[381836568,1756363885691,-379.13327164,0.00033362,2]
[381836569,1756363885701,-150.0,0.00033362,2]
[381836570,1756363885710,-216.85595392,0.00033362,2]
[381836571,1756363885719,-345.50492585,0.00033362,2]
[381836572,1756363885728,-486.18407262,0.00033362,2]
[381836573,1756363885738,-172.09988969,0.00033362,2]
[381836574,1756363885747,-553.5542091,0.00033362,2]
[381836575,1756363885756,-368.3059659,0.00033362,2]
[381836576,1756363885765,-406.61665169,0.00033362,2]
[381836577,1756363885775,-204.91672763,0.00033362,2]
[381836578,1756363885785,-285.6812698,0.00033362,2]
[381836579,1756363885794,-465.1342955,0.00033362,2]
[381836580,1756363885802,-150.0,0.00033362,2]
[381836581,1756363885811,-160.0,0.00033362,2]
[381836582,1756363885820,-159.5331085,0.00033362,2]
[381836583,1756363885829,-201.43310396,0.00033362,2]
[381836584,1756363885839,-150.0,0.00033362,2]
[381836585,1756363885848,-570.45001873,0.00033362,5]
[381836586,1756363885858,-10736.08470547,0.00033362,3]
[381836587,1756363885868,-2012.14359126,0.00033362,5]
[381836588,1756363885877,-628.79005285,0.00033362,6]
[381836589,1756363885887,-540.0637518,0.00033362,7]
[381836590,1756363885896,-990.07529262,0.00033362,5]
[381836591,1756363885907,-600.0,0.00033362,5]
[381836592,1756363885916,-15074.93558307,0.00033362,2]
[381836593,1756363885925,-621.28155848,0.00033362,5]
[381836594,1756363885935,-500.0,0.00033362,10]
[381836595,1756363885944,-1046.79146616,0.00033362,15]
[381836596,1756363885954,-1267.22021825,0.00033362,15]
[381836597,1756363885963,-15038.7316951,0.00033362,3]
[381836598,1756363885972,-492.87918137,0.00033362,3]
[381836599,1756363885986,-238.27671813,0.00033362,3]
[381836600,1756363885995,-109895.80393948,0.00033362,2]
[381836601,1756363886004,-4786.14548534,0.00033362,4]
[381836602,1756363886013,-6859.7878588,0.00033362,4]
[381836603,1756363886022,-5262.34062207,0.00033362,4]
[381836604,1756363886031,-19220.66948288,0.00033362,5]
[381836605,1756363886042,-25075.21408279,0.00033362,5]
[381836606,1756363886052,-221.77943009,0.00033362,5]
[381836607,1756363886062,-1095.7486558,0.00033362,5]
[381836608,1756363886071,-471.86371772,0.00033362,7]
[381836609,1756363886080,-230.17137177,0.00033362,14]
[381836610,1756363886089,-228.70750638,0.00033362,15]
[381836611,1756363886099,-1590.5097929,0.00033362,2]
[381836612,1756363886108,-7891.3770918,0.00033362,10]
[381836613,1756363886118,-247.59153014,0.00033362,7]
[381836614,1756363886127,-1052.4759222,0.00033362,7]
[381836615,1756363886137,-1028.2353457,0.00033362,7]
[381836616,1756363886146,-221.09075847,0.00033362,7]
[381836617,1756363886155,-199.99999901,0.00033362,7]
[381836618,1756363886165,-236.59800951,0.00033362,7]
[381836619,1756363886174,-2352.74517517,0.00033362,7]
[381836620,1756363886184,-20905.28838164,0.00033362,2]
[381836621,1756363886193,-179.08613075,0.00033362,3]
[381836622,1756363886203,-556.0542217,0.00033362,2]
[381836623,1756363886212,-164.3,0.00033362,2]
[381836624,1756363886222,-104808.7970918,0.00033362,15]
[381836625,1756363886232,-461.999999,0.00033362,2]
[381836626,1756363886241,-12557.42766889,0.00033362,2]
[381836627,1756363886251,-11054.999999,0.00033362,20]
[381836628,1756363886261,-100003.66775524,0.00033362,2]
[381836629,1756363886270,-10869.49175974,0.00033362,15]
[381836630,1756363886280,-4266.0,0.00033362,2]
[381836631,1756363886289,-11688.7550348,0.00033362,20]
[381836632,1756363886299,-184971.68157689,0.00033362,10]
[381836633,1756363886308,-5079.83468227,0.00033362,2]
[381836634,1756363886318,-152.47041545,0.00033362,2]
[381836635,1756363886327,-8225.31925489,0.00033362,3]
[381836636,1756363886336,-296.14478051,0.00033362,10]
[381836637,1756363886346,-8114.48912657,0.00033362,2]
[381836638,1756363886356,-50000.0,0.00033362,30]
[381836639,1756363886366,-50000.0,0.00033362,31]
[381836640,1756363886375,-50000.0,0.00033362,32]
[381836641,1756363886385,-50000.0,0.00033362,33]
[381836642,1756363886394,-17412.02318342,0.00033362,34]
[381836643,1756363886517,-322.21848,0.00033362,34]
[381836644,1756363980437,399.9,0.00030136,120]
[381836651,1756364097030,1500.0,0.00030136,120]
[381836662,1756364188824,1300.0,0.00030136,120]
[381836683,1756364567289,-150.0,0.00013699,2]
[381836701,1756364798913,-2.78,0.00013699,2]
[381836702,1756364798935,-273.35655121,0.00015,2]
[381836703,1756364800998,-118.80211792,0.00015,2]
[381836708,1756364842239,3000.0,0.0003,120]
[381836738,1756365032300,-150.724341,0.00016694,2]
[381836739,1756365032310,-237.375843,0.00016694,2]
[381836740,1756365032320,-156.233097,0.00016694,2]
[381836741,1756365032335,-156.233097,0.00017477,2]
[381836742,1756365032344,-802.93346993,0.00017798,2]
[381836743,1756365032355,-152.90653007,0.00017798,2]
[381836744,1756365032367,-156.233097,0.00017816,2]
[381836745,1756365032376,-199.0,0.00017872,2]
[381836746,1756365032386,-1200.0,0.00017872,2]
[381836747,1756365032395,-300.0,0.00017872,2]
[381836748,1756365032407,-500.0,0.00017873,2]
[381836749,1756365032417,-500.0,0.00017873,2]
[381836750,1756365032427,-500.0,0.00017873,2]
[381836751,1756365032436,-500.0,0.00017873,2]
[381836752,1756365032446,-400.0,0.00017898,2]
[381836753,1756365032455,-264.31,0.00017898,2]
[381836754,1756365032465,-400.0,0.00017898,2]
[381836755,1756365032474,-500.0,0.00017973,2]
[381836756,1756365032483,-150.0,0.00017998,2]
[381836757,1756365032494,-500.0,0.00017999,2]
[381836758,1756365032503,-500.0,0.00017999,2]
[381836759,1756365032513,-355.67934032,0.00017999,2]
[381836760,1756365032522,-500.0,0.00017999,2]
[381836761,1756365032535,-500.0,0.00017999,2]
[381836762,1756365032544,-233.86390846,0.00017999,2]
[381836763,1756365032554,-500.0,0.00017999,2]
[381836764,1756365032564,-500.0,0.00017999,2]
[381836765,1756365032573,-687.76,0.00018,2]
[381836766,1756365032582,-29999.99,0.00018,2]
[381836767,1756365032592,-8135.6,0.00018,2]
[381836768,1756365032601,-955.84,0.00018072,2]
[381836769,1756365032611,-955.84,0.00018346,2]
[381836770,1756365032620,-500.0,0.00018363,2]
[381836771,1756365032636,-251.0,0.00018363,2]
[381836772,1756365032646,-2500.0,0.00018363,2]
[381836773,1756365032655,-300.0,0.00018363,2]
[381836774,1756365032664,-150.0,0.00018363,2]
[381836775,1756365032674,-250.0,0.00018363,2]
[381836776,1756365032693,-500.0,0.00018494,2]
[381836777,1756365032703,-501.61804041,0.000186,2]
[381836778,1756365032713,-955.84,0.0001862,2]
[381836779,1756365032722,-955.84,0.00018894,2]
[381836780,1756365032731,-955.84,0.00019168,2]
[381836781,1756365032741,-955.84,0.00019442,2]
[381836782,1756365032750,-420.0,0.00019502,2]
[381836783,1756365032759,-955.84,0.00019716,2]
[381836784,1756365032769,-212.25325354,0.00019718,2]
[381836785,1756365032778,-955.84,0.0001999,2]
[381836786,1756365032787,-955.84,0.00020264,2]
[381836787,1756365032798,-955.84,0.00020538,2]
[381836788,1756365032807,-5157.04,0.00020741,2]
[381836789,1756365032816,-955.84,0.00020812,2]
[381836790,1756365032826,-152.78,0.00020951,2]
[381836791,1756365032835,-955.84,0.00021086,2]
[381836792,1756365032846,-587.0,0.00021282,2]
[381836793,1756365032857,-955.84,0.0002136,2]
[381836794,1756365032867,-955.84,0.00021634,2]
[381836795,1756365032877,-178.67,0.00021692,2]
[381836796,1756365032888,-955.84,0.00021908,2]
[381836797,1756365032899,-5000.0,0.00021918,2]
[381836798,1756365032909,-160.0,0.0002209,7]
[381836799,1756365032920,-955.84,0.00022182,2]
[381836800,1756365032931,-955.84,0.00022456,2]
[381836801,1756365032942,-175.56,0.00022465,2]
[381836802,1756365032952,-955.84,0.0002273,2]
[381836803,1756365032963,-955.84,0.00023004,2]
[381836804,1756365032972,-331.0,0.00023224,2]
[381836805,1756365032984,-955.84,0.00023278,2]
[381836806,1756365032994,-151.91,0.00023479,2]
[381836807,1756365033004,-151.34,0.00023479,2]
[381836808,1756365033014,-955.84,0.00023552,2]
[381836809,1756365033024,-955.84,0.00023826,2]
[381836810,1756365033034,-150.0,0.0002384,2]
[381836811,1756365033044,-312.0,0.00024,7]
[381836812,1756365033053,-955.89296939,0.000241,2]
[381836813,1756365033063,-1738.2,0.00024109,2]
[381836814,1756365033073,-1000.0,0.00024416,2]
[381836815,1756365033083,-160.0,0.00024523,2]
[381836816,1756365033092,-1000.0,0.00024658,2]
[381836817,1756365033102,-550.0,0.00024799,2]
[381836818,1756365033114,-5343.56885422,0.000249,2]
[381836819,1756365033124,-5343.56885413,0.00025597,3]
[381836820,1756365033134,-2768.49,0.00026,7]
[381836821,1756365033144,-177.47,0.00026025,2]
[381836822,1756365033156,-5343.56885413,0.00026293,5]
[381836823,1756365033166,-1738.2,0.00026301,7]
[381836824,1756365033178,-311.7,0.000265,2]
[381836825,1756365033189,-685.91,0.000266,7]
[381836826,1756365033199,-2768.49,0.000266,7]
[381836827,1756365033210,-2000.0,0.000268,2]
[381836828,1756365033221,-200.0,0.00026833,2]
[381836829,1756365033232,-2188.98730762,0.0002699,6]
[381836830,1756365033247,-3154.58154651,0.0002699,6]
[381836831,1756365033258,-193.30910672,0.00027297,2]
[381836832,1756365033269,-2500.0,0.00027354,7]
[381836833,1756365033279,-2500.0,0.00027363,7]
[381836834,1756365033290,-542.82084214,0.00027371,7]
[381836835,1756365033334,-306.15024701,0.00024899,2]
[381836836,1756365033344,-380.26595299,0.00027371,7]
[381836837,1756365033358,-1576.91320487,0.00027371,7]
[381836838,1756365033369,-160.0,0.00027371,7]
[381836839,1756365033380,-2500.0,0.0002738,7]
[381836840,1756365033390,-2500.0,0.00027389,7]
[381836841,1756365033400,-1133.8,0.00027397,16]
[381836842,1756365033410,-274.75,0.00027397,80]
[381836843,1756365033422,-4000.0,0.00027397,2]
[381836844,1756365033432,-300.0,0.00027397,2]
[381836845,1756365033447,-163.007,0.00027409,16]
[381836846,1756365033458,-1656.345,0.00027409,16]
[381836847,1756365033468,-1000.0,0.00027468,2]
[381836848,1756365033479,-1551.108911,0.000275,7]
[381836849,1756365033505,-1217.381089,0.000275,7]
[381836850,1756365033514,-500.0,0.00027671,2]
[381836851,1756365033524,-500.0,0.00027671,2]
[381836852,1756365033534,-200.0,0.00027671,2]
[381836853,1756365033543,-150.0,0.00027671,2]
[381836854,1756365033562,-150.0,0.00027671,2]
[381836855,1756365033573,-150.0,0.00027671,2]
[381836856,1756365033582,-150.0,0.00027671,2]
[381836857,1756365033592,-150.0,0.00027671,2]
[381836858,1756365033602,-150.0,0.00027671,2]
[381836859,1756365033612,-222.0,0.00027687,5]
[381836860,1756365033622,-2393.27259085,0.00027687,8]
[381836861,1756365033634,-2950.29626328,0.00027687,8]
[381836862,1756365033645,-500.0,0.00027945,2]
[381836863,1756365033655,-500.0,0.00027945,2]
[381836864,1756365033666,-2063.29,0.00028,7]
[381836865,1756365033675,-2768.49,0.00028,7]
[381836866,1756365033685,-2266.0,0.00028003,2]
[381836867,1756365033695,-152.78,0.00028203,2]
[381836868,1756365033705,-500.0,0.00028219,2]
[381836869,1756365033715,-635.89307875,0.00028219,2]
[381836870,1756365033725,-2266.0,0.00028291,2]
[381836871,1756365033736,-5343.56885413,0.00028384,9]
[381836872,1756365033746,-500.0,0.00028493,2]
[381836873,1756365033756,-1738.2,0.00028493,12]
[381836874,1756365033767,-344.899999,0.000285,2]
[381836875,1756365033776,-2266.0,0.0002858,2]
[381836876,1756365033786,-500.0,0.00028767,2]
[381836877,1756365033796,-2266.0,0.00028869,2]
[381836878,1756365033806,-761.03821659,0.00028869,2]
[381836879,1756365033816,-151.69625086,0.00029,2]
[381836880,1756365033826,-500.0,0.00029041,2]
[381836881,1756365033837,-5343.56885413,0.0002908,11]
[381836882,1756365033847,-2266.0,0.00029157,2]
[381836883,1756365033857,-399.4856146,0.00029171,2]
[381836884,1756365033867,-500.0,0.00029315,2]
[381836885,1756365033876,-2266.0,0.00029446,2]
[381836886,1756365033887,-300.0,0.000295,2]
[381836887,1756365033897,-500.0,0.00029589,2]
[381836888,1756365033908,-2266.0,0.00029735,2]
[381836889,1756365033919,-336.56,0.00029767,2]
[381836890,1756365033930,-5343.56885413,0.00029777,12]
[381836891,1756365033940,-399.48561455,0.00029793,2]
[381836892,1756365033950,-183.79103238,0.00029863,2]
[381836893,1756365033960,-151.0,0.0003,30]
[381836894,1756365033970,-500.0,0.00030137,7]
[381836895,1756365033980,-2000.0,0.000303,2]
[381836896,1756365033990,-500.0,0.00030348,7]
[381836897,1756365034000,-500.0,0.00030348,7]
[381836898,1756365034010,-399.48561455,0.00030414,2]
[381836899,1756365034020,-5343.56885413,0.00030474,14]
[381836900,1756365034030,-300.0,0.000305,3]
[381836901,1756365034041,-598.63858397,0.000305,22]
[381836902,1756365034052,-1000.0,0.0003052,2]
[381836903,1756365034062,-260.0,0.000306,2]
[381836904,1756365034072,-1738.2,0.00030684,17]
[381836905,1756365034082,-274.75,0.00030822,80]
[381836906,1756365034092,-151.0,0.00031,30]
[381836907,1756365034102,-399.48561455,0.00031036,2]
[381836908,1756365034112,-500.0,0.0003117,7]
[381836909,1756365034124,-5343.56885413,0.00031171,15]
[381836910,1756365034134,-311.7,0.000314,2]
[381836911,1756365034144,-300.0,0.000315,5]
[381836912,1756365034156,-399.48561455,0.00031657,2]
[381836913,1756365034166,-2768.49,0.000317,7]
[381836914,1756365034176,-255.0,0.0003178,2]
[381836915,1756365034186,-5343.56885413,0.00031867,17]
[381836916,1756365034196,-458.61552651,0.00031991,2]
[381836917,1756365034206,-500.0,0.00031992,7]
[381836918,1756365034218,-500.0,0.00031992,7]
[381836919,1756365034229,-151.0,0.00032,30]
[381836920,1756365034241,-399.48561455,0.00032279,2]
[381836921,1756365034251,-400.0,0.000324,11]
[381836922,1756365034261,-300.0,0.000325,6]
[381836923,1756365034271,-800.0,0.000325,11]
[381836924,1756365034282,-5343.56885413,0.00032564,18]
[381836925,1756365034292,-1200.0,0.000326,11]
[381836926,1756365034303,-1700.0,0.000327,11]
[381836927,1756365034313,-2100.0,0.000328,11]
[381836928,1756365034324,-500.0,0.00032814,7]
[381836929,1756365034337,-1738.2,0.00032876,22]
[381836931,1756365034347,-221.77002503,0.00032877,7]
[381836932,1756365034360,-399.48561455,0.000329,2]
[381836933,1756365034371,-400.0,0.000329,12]
[381836934,1756365034381,-250.0,0.0003297,2]
[381836935,1756365034391,-336.56,0.0003299,2]
[381836936,1756365034402,-150.0,0.00033,14]
[381836938,1756365034412,-2000.0,0.00033,2]
[381836939,1756365034424,-459.25,0.00033,5]
[381836940,1756365034434,-2012.1642,0.00033,2]
[381836941,1756365034444,-337.0,0.00033,14]
[381836942,1756365034454,-161.82,0.00033,34]
[381836943,1756365034464,-203.45695,0.0003303,2]
[381836944,1756365034474,-337.0,0.00033151,30]
[381836945,1756365034485,-400.0,0.00033248,2]
[381836946,1756365034495,-501.65,0.00033248,2]
[381836947,1756365034506,-500.0,0.00033249,2]
[381836948,1756365034518,-391.94895884,0.00033249,2]
[381836949,1756365034529,-1484.42657334,0.00033254,2]
[381836950,1756365034539,-5625.53570614,0.00033254,5]
[381836951,1756365034550,-193.30910671,0.00033254,2]
[381836952,1756365034560,-2601.04546807,0.00033254,2]
[381836954,1756365038528,-162.0,0.00025,7]
[381836955,1756365038539,-504.31705928,0.00033254,2]
[381837121,1756365040304,-1325.93961403,0.00033254,2]
[381837123,1756365040317,-963.83335343,0.00033254,2]
[381837125,1756365040332,-417.93718273,0.00033255,2]
[381837127,1756365040343,-171.09120995,0.00033255,30]
[381837129,1756365040353,-171.09120995,0.00033255,30]
[381837131,1756365040363,-171.09,0.00033255,30]
[381837134,1756365040376,-171.09120995,0.00033255,30]
[381837136,1756365040386,-171.09120995,0.00033255,30]
[381837138,1756365040396,-171.09120995,0.00033255,30]
[381837140,1756365040408,-152.21007568,0.00033255,30]
[381837142,1756365040418,-336.56,0.00033334,2]
[381837144,1756365040427,-336.56,0.00033338,2]
[381837146,1756365040437,-260.58572672,0.00033345,3]
[381837174,1756365040690,-1299.03795103,0.00033345,3]
[381837449,1756365043536,-14300.0,0.00033345,3]
[381837714,1756365046286,-6116.99820001,0.00033345,3]
[381837733,1756365046600,-36877.04379794,0.00033345,3]
[381837734,1756365046610,-336.56,0.00033345,2]
[381837735,1756365046619,-186.47760141,0.00033345,2]
[381837736,1756365046629,-167.87,0.00033345,2]
[381837737,1756365046638,-167.87,0.00033345,2]
[381837738,1756365046647,-167.87,0.00033345,2]
[381837739,1756365046656,-167.87,0.00033345,2]
[381837740,1756365046666,-167.87,0.00033345,2]
[381837741,1756365046675,-167.87,0.00033345,2]
[381837742,1756365046685,-167.87,0.00033345,2]
[381837743,1756365046695,-167.87,0.00033345,2]
[381837744,1756365046704,-167.87,0.00033345,2]
[381837745,1756365046714,-167.87,0.00033345,2]
[381837746,1756365046723,-167.87,0.00033345,2]
[381837747,1756365046732,-167.87,0.00033345,2]
[381837748,1756365046741,-167.87,0.00033345,2]
[381837749,1756365046752,-167.87,0.00033345,2]
[381837750,1756365046761,-167.87,0.00033345,2]
[381837751,1756365046771,-167.87,0.00033345,2]
[381837752,1756365046781,-167.87,0.00033345,2]
[381837753,1756365046790,-167.87,0.00033345,2]
[381837754,1756365046800,-167.87,0.00033345,2]
[381837755,1756365046810,-167.87,0.00033345,2]
[381837756,1756365046820,-33.90093464,0.00033345,2]
[381837759,1756365046832,-133.96906536,0.00033345,2]
[381837760,1756365046842,-167.87,0.00033345,2]
[381837761,1756365046852,-167.87,0.00033345,2]
[381837762,1756365046862,-88.1731347,0.00033345,2]
[381837774,1756365122732,1000.0,0.0002695,120]
[381837775,1756365123557,251.0,0.0002695,120]
[381837776,1756365123696,251.0,0.00025818,120]
[381837777,1756365124790,300.0,0.0002695,120]
[381837832,1756365408259,164.94437353,0.00030137,120]
[381837902,1756365542266,-150.00000001,0.00013699,2]
[381837931,1756365605136,-3.97999999,0.00013699,2]
[381837932,1756365605160,-209.52624734,0.00015068,2]
[381837937,1756365609401,-40.47375266,0.00015068,2]
[381837938,1756365609424,-250.0,0.00015849,2]
[381837962,1756365772589,155.0,0.00030136,120]
[381837966,1756365794123,178.68,0.00028246,120]